[Event "12th Senioren-Cup Tegernsee 2024"]
[Site "Rottach-Egern"]
[Date "2024.04.10"]
[Round "5.6"]
[White "Schott, Guido"]
[Black "Vatter, Hans-Joachim"]
[Result "0-1"]
[ECO "B26"]
[WhiteElo "2042"]
[BlackElo "2211"]
[Annotator "TA"]
[PlyCount "68"]
[EventDate "2024.04.02"]
[EventType "swiss"]
[EventCountry "GER"]
[SourceTitle "playchess.com"]
[Source "ChessBase"]
[SourceQuality "1"]
[TimeControl "7800+30"]

{[%evp 18,68,0,0,14,-14,-14,-16,-10,-18,-2,0,0,-30,-33,-23,-15,-54,-46,-49,-51,-66,-75,-80,-58,-64,-64,-65,-95,-125,-126,-138,-132,-208,-204,-271,-276,-279,-262,-266,-270,-328,-299,-330,-327,-314,-294,-422,-420,-638,-622,-29995,-29996]} 1. e4 {[%emt 0:00:06]} c5 {[%emt 0:01:35]} 2. Nc3 {[%emt 0:02:33]} Nc6 {[%emt 0:00:25]} 3. g3 {[%emt 0:01:41]} g6 {[%emt 0:00:32]} 4. Bg2 {[%emt 0:00:15]} Bg7 {[%emt 0:00:01]} 5. d3 {[%emt 0:00:34]} d6 {[%emt 0:01:47]} 6. Be3 {[%emt 0:00:46]} Rb8 {[%emt 0:02:00]} 7. Qd2 {[%emt 0:02:42]} b5 {[%emt 0:01:16][%cal Bb7b5,Bb5b4][%mdl 32]} 8. Nge2 {[%emt 0:01:03]} b4 {[%emt 0:01:25]} 9. Nd1 {[%emt 0:00:22]} Nd4 {[%emt 0:03:23]} 10. O-O {[%emt 0:08:37]} h5 {[%emt 0:03:52]} 11. c3 {[%emt 0:15:04]} Nxe2+ {[%emt 0:02:19]} 12. Qxe2 {[%emt 0:00:03]} bxc3 {[%emt 0:00:09] The position is equal.} 13. bxc3 {[%emt 0:01:32]} Qa5 {[%emt 0:01:32]} 14. Qc2 {[%emt 0:02:41]} h4 {[%emt 0:04:15]} 15. Rb1 {[%emt 0:06:39]} Rxb1 {[%emt 0:01:56]} 16. Qxb1 {[%emt 0:00:04]} Nf6 {[%emt 0:03:46]} (16... Bxc3 $2 17. Nxc3 (17. Qb8 Kd8 $18) 17... Qxc3 18. Qb8 $18) 17. e5 {[%emt 0:08:19]} dxe5 {[%emt 0:00:35]} 18. Bc6+ {[%emt 0:00:22]} Nd7 {[%emt 0:00:38]} 19. Bxd7+ {[%emt 0:16:47]} Kxd7 {[%emt 0:00:58]} 20. Qb3 {[%emt 0:00:57]} e6 {[%emt 0:03:25]} 21. Nb2 {[%emt 0:03:08]} Ba6 {[%emt 0:04:32]} 22. Na4 {[%emt 0:03:46]} Rc8 {[%emt 0:04:32]} (22... Bxd3 $2 {too greedy.} 23. Nxc5+ Ke8 24. Nxd3 $18) 23. Qa3 {[%emt 0:05:23][%cal Ra4c5]} Ke8 {[%emt 0:05:40]} 24. c4 {[%emt 0:06:48][%cal Re3c5] Dodges Bb5} e4 {[%emt 0:06:13]} 25. Rd1 {[%emt 0:27:52]} (25. Qb3 $17) 25... exd3 $19 {[%emt 0:05:50]} 26. Bd2 {[%emt 0:00:15]} Qc7 {[%emt 0:05:03]} 27. Nxc5 {[%emt 0:00:59]} Qxc5 {[%emt 0:00:56]} 28. Qxa6 {[%emt 0:00:05]} Qxc4 {[%emt 0:04:31]} 29. Qxa7 {[%emt 0:00:44]} h3 {[%emt 0:00:19] ( -> ...Qd5)} 30. Bg5 {[%emt 0:02:44] [#]} Bf8 {[%emt 0:03:56] Prevents Qe7+. Active counter play!} 31. Qb7 {[%emt 0:01:04] Dodges Qc6} Bb4 {[%emt 0:02:55]} 32. Qf3 {[%emt 0:02:38]} (32. Rxd3 $2 {is a self mate.} Qc1+ 33. Bxc1 Rxc1+) (32. a4 $142) 32... d2 {[%emt 0:09:33]} ({Weaker is} 32... Qxa2 33. Qxd3 Kf8 34. Qf1 $11) 33. Bxd2 {[%emt 0:01:26]} (33. Bf4 $142) 33... Bxd2 {[%emt 0:00:45]} 34. Rxd2 {[%emt 0:00:05] [#]} Qe4 $3 {[%emt 0:00:46][%mdl 512] Weighted Error Value: White=0.62/Black=0.06 (flawless) .  Mistake:       	White=3     	---        Inaccurate:     	White=6     	---        OK:         	White=7     	Black=12     Best:        	White=1     	Black=2} 0-1

[Event "12th Senioren-Cup Tegernsee 2024"]
[Site "Rottach-Egern"]
[Date "2024.04.10"]
[Round "5.8"]
[White "Schatz, Christian"]
[Black "Baeuml, Ulrich"]
[Result "1/2-1/2"]
[ECO "A35"]
[WhiteElo "2158"]
[BlackElo "2016"]
[Annotator "TA"]
[PlyCount "40"]
[EventDate "2024.04.02"]
[EventType "swiss"]
[EventCountry "GER"]
[SourceTitle "playchess.com"]
[Source "ChessBase"]
[SourceQuality "1"]
[TimeControl "7800+30"]

{[%evp 20,40,-8,-10,-6,-11,-17,-19,-10,-15,0,0,0,0,0,-9,0,-3,0,0,0,0,0]} 1. c4 {[%emt 2:11:00]} c5 {[%emt 0:00:16]} 2. Nf3 {[%emt 0:00:00]} Nc6 {[%emt 0:00:30]} 3. Nc3 {[%emt 0:00:00]} g6 {[%emt 0:00:29]} 4. d4 {[%emt 0:00:00]} cxd4 {[%emt 0:00:15]} 5. Nxd4 {[%emt 0:00:00]} Bg7 {[%emt 0:00:08]} 6. e3 {[%emt 0:00:00]} Nf6 {[%emt 0:00:52]} 7. Be2 {[%emt 0:00:00]} O-O {[%emt 0:01:53]} 8. O-O {[%emt 0:00:00]} d5 {[%emt 0:09:24]} 9. cxd5 {[%emt 0:00:00]} Nxd5 {[%emt 0:00:17]} 10. Nxc6 {[%emt 0:00:00]} bxc6 {[%emt 0:00:34]} 11. Bd2 {[%emt 0:00:00] The position is equal.} Nxc3 {[%emt 0:05:21]} 12. Bxc3 {[%emt 0:00:00]} Bxc3 {[%emt 0:00:13]} 13. bxc3 {[%emt 0:00:00]} Qa5 {[%emt 0:03:14]} 14. Qb3 {[%emt 0:00:00]} Ba6 {[%emt 0:02:28]} 15. Bxa6 {[%emt 0:00:00]} Qxa6 {[%emt 0:00:02]} 16. Rab1 {[%emt 0:00:00]} Rfd8 {[%emt 0:01:38]} 17. Qc2 {[%emt 0:00:00]} Rd6 {[%emt 0:04:52]} 18. Rfd1 {[%emt 0:00:00]} Rad8 {[%emt 0:02:07]} 19. g3 {[%emt 0:00:00]} Rxd1+ {[%emt 0:04:31]} 20. Rxd1 {[%emt 0:00:00]} Rxd1+ {A rather calm draw.   Weighted Error Value: White=0.02 (flawless) /Black=0.03 (flawless) .  OK:         	White=3     	Black=3} 1/2-1/2

[Event "12th Senioren-Cup Tegernsee 2024"]
[Site "Rottach-Egern"]
[Date "2024.04.10"]
[Round "5.9"]
[White "Scheckenbach, Franz"]
[Black "Crickmore, Neil E G"]
[Result "1/2-1/2"]
[ECO "B09"]
[WhiteElo "2038"]
[BlackElo "2151"]
[Annotator "TA"]
[PlyCount "88"]
[EventDate "2024.04.02"]
[EventType "swiss"]
[EventCountry "GER"]
[SourceTitle "playchess.com"]
[Source "ChessBase"]
[SourceQuality "1"]
[TimeControl "7800+30"]

{[%evp 24,88,6,-4,-16,-191,-172,-179,-172,-175,-175,-181,-197,-193,-191,-192,-81,-105,-114,-128,-58,-46,-31,-29,-22,-28,-43,-24,-8,-7,0,0,0,0,0,0,0,0,0,0,-3,-26,0,-19,-9,-10,0,-5,-5,-6,-8,-8,-8,-25,-25,-29,-25,-43,0,-22,-31,-24,0,-6,-6,-12,0]} 1. e4 {[%emt 0:00:06]} d6 {[%emt 0:00:28]} 2. d4 {[%emt 0:00:21]} Nf6 {[%emt 0:00:52]} 3. Nc3 {[%emt 0:00:11]} g6 {[%emt 0:00:36]} 4. f4 {[%emt 0:02:36]} Bg7 {[%emt 0:04:17]} 5. Nf3 {[%emt 0:01:04]} c5 {[%emt 0:01:12]} 6. dxc5 {[%emt 0:04:08]} Qa5 {[%emt 0:02:02]} 7. Bd3 {[%emt 0:00:41]} Qxc5 {[%emt 0:00:50]} 8. Qe2 {[%emt 0:00:36]} O-O {[%emt 0:00:22]} 9. Be3 {[%emt 0:06:42]} Qa5 {[%emt 0:00:06]} 10. O-O {[%emt 0:02:18]} Bg4 {[%emt 0:00:27]} 11. h3 {[%emt 0:06:07]} Bxf3 {[%emt 0:00:06]} 12. Qxf3 {[%emt 0:00:09]} Nc6 {[%emt 0:00:18]} 13. Ne2 {[%emt 0:12:52]} Nd7 {[%emt 0:00:26]} 14. c3 $2 {[%emt 0:00:31] [#]} (14. Rfb1 $11 {and White is okay.}) 14... Nde5 $1 $19 {[%emt 0:00:10][%mdl 512]} 15. fxe5 {[%emt 0:00:55]} Nxe5 {[%emt 0:02:53] Black is clearly better.} 16. Qg3 {[%emt 0:00:43] Strongly threatening Bd4.} Nxd3 {[%emt 0:00:11]} 17. Bg5 {[%emt 0:03:38]} Nxb2 {[%emt 0:55:30]} 18. Bxe7 {[%emt 0:04:24]} Rfe8 {[%emt 0:00:14]} 19. Bf6 {[%emt 0:19:14]} Nc4 {[%emt 0:18:45]} ({Weaker is} 19... Rxe4 20. Bxg7 Kxg7 21. Nd4 $11) (19... Bxf6 $19 {is more deadly.} 20. Rxf6 Rxe4) 20. Bxg7 $17 {[%emt 0:03:28]} Kxg7 {[%emt 0:00:12]} 21. Nd4 {[%emt 0:22:16]} Qe5 {[%emt 0:18:33]} ({Of course not} 21... Rxe4 $6 22. Rxf7+ Kxf7 23. Qf3+ Kg8 24. Qxe4 $11) (21... Nd2 $17 22. Nf5+ Kh8 23. Nxd6 Nxf1 24. Rxf1 Rf8) 22. Rf4 $15 {[%emt 0:07:01][%cal Bf1f4,Bf4g4,Bg4g3,Bg3d3,Bd3d4][%mdl 32]} f6 {[%emt 0:15:40]} 23. Rb1 {[%emt 0:02:55][%cal Ba1b1,Bb1b5,Bb5b7][%mdl 32]} Nb6 {[%emt 0:07:36]} (23... Kg8 {simplifies} 24. Qf2 b6 25. Rf1 Rf8) 24. Rb5 {[%emt 0:08:37]} (24. a4 {simplifies} Kh8 25. a5 g5 26. Rf3) 24... d5 {[%emt 0:00:04]} 25. exd5 {[%emt 0:00:15][%cal Od5d6]} Nxd5 {[%emt 0:02:11]} 26. Rxb7+ {[%emt 0:03:38]} Kg8 {[%emt 0:02:46]} 27. Rg4 {[%emt 0:09:45][%cal Og4g6]} Qxg3 {[%emt 0:00:23]} 28. Rxg3 {[%emt 0:00:06]} Rec8 {[%emt 0:01:38]} 29. Ne2 {[%emt 0:04:14]} Rcb8 {[%emt 0:02:27]} 30. Rxb8+ {[%emt 0:00:47]} Rxb8 $11 {[%emt 0:00:01][%mdl 4096] Endgame. KRN-KRN} 31. Rd3 {[%emt 0:00:47]} Nb6 {[%emt 0:00:09]} 32. Kf2 {[%emt 0:01:19]} Kf7 {[%emt 0:00:05]} 33. Nd4 {[%emt 0:01:19]} Nc4 {[%emt 0:00:25]} 34. Nb3 {[%emt 0:01:18]} Rb7 {[%emt 0:02:56] Against Rd7+} 35. Rd4 {[%emt 0:01:06]} Rc7 {[%emt 0:00:07]} 36. Ke2 {[%emt 0:02:02]} h5 {[%emt 0:00:03]} 37. Kd3 {[%emt 0:00:48]} Ne5+ {[%emt 0:00:34]} 38. Kd2 {[%emt 0:00:38]} g5 {[%emt 0:00:10]} 39. Nc1 {[%emt 0:01:45]} Ke6 {[%emt 0:00:50]} 40. Ne2 {[%emt 0:00:18]} f5 {[%emt 0:00:37]} (40... h4 $5) 41. Ra4 {[%emt 0:00:42]} Nc4+ {[%emt 0:00:07]} 42. Ke1 {[%emt 0:00:25]} Ne3 {[%emt 0:01:00]} 43. Kf2 {[%emt 0:00:25]} Nd1+ {[%emt 0:00:10]} 44. Ke1 {[%emt 0:00:52]} Ne3 {[%emt 0:01:19] Whites escaped into a draw.   Weighted Error Value: White=0.13 (very precise) /Black=0.14 (very precise) .  Loses game:     	White=1     	---        Mistake:       	---       	Black=2      Inaccurate:     	---       	Black=2      OK:         	White=12    	Black=10     Best:        	White=1     	Black=2} 1/2-1/2

[Event "12th Senioren-Cup Tegernsee 2024"]
[Site "Rottach-Egern"]
[Date "2024.04.10"]
[Round "5.10"]
[White "Haubt, Georg"]
[Black "Wille, Thomas"]
[Result "1/2-1/2"]
[ECO "A43"]
[WhiteElo "2013"]
[BlackElo "2147"]
[Annotator "TA"]
[PlyCount "159"]
[EventDate "2024.04.02"]
[EventType "swiss"]
[EventCountry "GER"]
[SourceTitle "playchess.com"]
[Source "ChessBase"]
[SourceQuality "1"]
[TimeControl "7800+30"]

{[%evp 46,159,102,102,102,102,93,104,161,158,280,269,262,97,106,86,104,52,131,0,123,0,35,27,45,22,18,16,27,16,7,15,31,22,16,18,24,11,11,10,32,33,35,36,68,65,272,0,0,0,0,0,0,0,0,0,0,0,0,0,8,8,1031,1031,962,612,970,787,966,948,933,0,0,0,0,0,0,0,0,0,0,0,0,0,0,0,0,0,0,0,0,0,0,0,0,0,8,8,8,8,8,8,8,8,8,8,8,8,8,0,8,8,8,0,0,0]} 1. d4 {[%emt 0:00:05]} c5 {[%emt 0:00:04]} 2. c3 {[%emt 0:00:56]} e6 {[%emt 0:00:07]} 3. Bf4 {[%emt 0:00:24]} Nc6 {[%emt 0:01:29]} 4. e3 {[%emt 0:01:09]} d5 {[%emt 0:00:28]} 5. Nd2 {[%emt 0:02:48]} Bd6 {[%emt 0:02:45]} 6. Bg3 {[%emt 0:04:15] A43: Schmid Benoni.} Nge7 {[%emt 0:06:32]} 7. Ngf3 {[%emt 0:02:02]} cxd4 {[%emt 0:03:50]} 8. exd4 {[%emt 0:02:21]} Nf5 {[%emt 0:00:33]} 9. Bd3 {[%emt 0:01:32]} Nxg3 {[%emt 0:03:04]} 10. hxg3 {[%emt 0:00:03]} g6 {[%emt 0:00:08]} 11. Qe2 {[%emt 0:00:57]} Qf6 {[%emt 0:00:53]} 12. O-O-O {[%emt 0:03:17]} Bd7 {[%emt 0:00:37]} 13. g4 {[%emt 0:00:43]} h6 $146 {[%emt 0:07:31]} ({Predecessor:} 13... O-O-O 14. Rde1 Qg7 15. Qe3 Rde8 16. g5 Kb8 17. Ne5 Bc8 18. Ndf3 f6 19. gxf6 Qxf6 {1-0 Andersen,J (2267)-Simonsen,P (2023) North Sea Cup 22nd 2007 (5)}) 14. Rde1 {[%emt 0:03:39]} O-O-O {[%emt 0:00:42]} 15. Ne5 {[%emt 0:00:56]} Bxe5 {[%emt 0:06:37]} 16. dxe5 {[%emt 0:00:03]} Qg5 {[%emt 0:06:27]} 17. g3 {[%emt 0:03:37]} f5 {[%emt 0:05:32]} 18. gxf5 {[%emt 0:01:53]} gxf5 {[%emt 1:32:11]} 19. Rh5 {[%emt 0:01:16]} Qg7 {[%emt 0:00:00]} 20. Qe3 {[%emt 0:01:35]} a6 {[%emt 0:00:00]} 21. Nb3 {[%emt 0:00:39]} Kc7 {[%emt 0:00:00]} 22. Nc5 {[%emt 0:02:58]} Bc8 {[%emt 0:00:00]} 23. Rh4 {[%emt 0:04:02]} Qg5 {[%emt 0:00:00]} 24. f4 {[%emt 0:04:19]} Qe7 {[%emt 0:00:00]} 25. Nb3 {[%emt 0:02:20]} d4 {[%emt 0:00:00]} 26. cxd4 {[%emt 0:02:30]} Qb4 {[%emt 0:00:00]} (26... Nb4 $16 {was worth a try.}) 27. Kb1 $18 {[%emt 0:05:40]} Nxd4 {[%emt 0:00:00]} (27... Kb8 $16 28. Rc1 Na5 (28... Nxd4 $2 29. Rc4 $18)) 28. Rc1+ $1 $18 {[%emt 0:00:18]} Nc6 {[%emt 0:00:00]} ({Don't blunder} 28... Kb8 $2 29. Rc4 Qe7 30. Nxd4 $18 (30. Rxd4 Rxd4 31. Qxd4 Qe8 $18)) 29. Qf3 $2 {[%emt 0:07:14]} (29. Bc4 $18 {is more deadly.}) 29... Qb6 $16 {[%emt 0:00:00]} 30. Rh2 {[%emt 0:06:56]} Kb8 {[%emt 0:06:00]} 31. Bc4 {[%emt 0:05:54]} ({Better is} 31. Bf1 $16) 31... a5 {[%emt 0:00:00]} (31... Nd4 $14 32. Qe3 Qa7) 32. Qf2 {[%emt 0:06:17]} (32. Bf1 $1 $16) 32... Ka7 {[%emt 0:00:00] [#]} (32... Qxf2 $11 33. Rxf2 Rhg8) 33. a4 {[%emt 0:01:44]} (33. Nc5 $1 $16) 33... Rhg8 {[%emt 0:00:00]} 34. Qe1 {[%emt 0:15:59]} Rg6 {[%emt 0:00:00]} 35. Bb5 {[%emt 0:01:58]} Nb4 {[%emt 0:00:00]} 36. Rd2 {[%emt 0:00:46]} Rgg8 {[%emt 0:00:00]} 37. Rcd1 {[%emt 0:01:50]} Rxd2 {[%emt 0:00:00]} 38. Rxd2 {[%emt 0:00:42]} Rd8 {[%emt 0:00:00]} 39. Rxd8 {[%emt 0:09:08]} Qxd8 {[%emt 0:00:00]} 40. Qd2 {[%emt 0:00:41]} Qc7 {[%emt 0:00:00]} (40... Qxd2 {simplifies} 41. Nxd2 Na6 42. Ka2 Nc7) 41. Qc3 {[%emt 0:05:03]} Qxc3 {[%emt 0:00:00]} 42. bxc3 {[%emt 0:00:03]} Nd5 {[%emt 0:00:00]} 43. Kc2 {[%emt 0:05:44]} (43. Nxa5 Nxc3+ 44. Kb2 Ne4 $17) 43... b6 {[%emt 0:00:00]} 44. Kd3 {[%emt 0:00:37]} Ba6 {[%emt 0:00:00]} 45. c4 {[%emt 0:09:31]} Bxb5 $2 {[%emt 0:00:00]} ({Black should try} 45... Nc7 $1 $14) 46. cxb5 $2 {[%emt 0:00:33]} (46. axb5 $18 Nc7 47. Nd4) 46... Kb7 $11 {[%emt 0:00:00]} 47. Nd4 {[%emt 0:00:10]} Nc7 {[%emt 0:00:00]} 48. Ke3 {[%emt 0:03:12]} Kc8 {[%emt 0:00:00]} 49. Kf3 {[%emt 0:00:45]} Kd7 {[%emt 0:00:00]} 50. g4 {[%emt 0:00:33]} fxg4+ {[%emt 0:00:00]} 51. Kxg4 {[%emt 0:00:02]} Nd5 {[%emt 0:00:00]} 52. Ne2 {[%emt 0:00:59]} Ne3+ {[%emt 0:00:00]} 53. Kh5 {[%emt 0:00:48]} Nf5 $2 {[%emt 0:00:00][%mdl 8192]} (53... Nd1 $11) 54. Kg6 $18 {[%emt 0:00:24]} Ke7 {[%emt 0:00:00]} 55. Nc3 {[%emt 0:01:29]} Kd7 {[%emt 0:00:00]} 56. Ne4 {[%emt 0:00:32]} Ke7 {[%emt 0:00:00]} 57. Nf6 {[%emt 0:01:16]} Ng3 {[%emt 0:00:00] [#]} 58. Kxh6 $2 {[%emt 0:02:16]} (58. Ng8+ $1 $18 Kf8 59. Nxh6) 58... Ne2 $1 $11 {[%emt 0:00:00]} 59. Ne4 {[%emt 0:05:41]} Nxf4 {[%emt 0:00:00]} 60. Nd6 {[%emt 0:00:21]} Kd7 {[%emt 0:00:00]} 61. Nc4 {[%emt 0:01:04]} Nd5 {[%emt 0:03:07]} 62. Kg7 {[%emt 0:00:09]} Ke7 {[%emt 0:00:13]} 63. Kg8 {[%emt 0:01:47]} Ke8 {[%emt 0:00:31]} 64. Nd6+ {[%emt 0:00:53]} Kd7 {[%emt 0:01:21]} 65. Kf7 {[%emt 0:01:32]} Nc3 {[%emt 0:00:21]} 66. Nc4 {[%emt 0:00:19]} Nxa4 {[%emt 0:00:12]} 67. Kf6 {[%emt 0:00:19]} Nc3 {[%emt 0:03:04]} 68. Nxb6+ {[%emt 0:01:12]} Kc7 {[%emt 0:00:55]} 69. Nc4 {[%emt 0:00:03]} Nxb5 {[%emt 0:00:03]} 70. Nxa5 {[%emt 0:00:04]} Kd7 {[%emt 0:00:24]} 71. Nb3 {[%emt 0:00:37]} Nc7 {[%emt 0:03:10]} 72. Nc5+ {[%emt 0:00:11]} Ke8 {[%emt 0:00:01]} 73. Nxe6 {[%emt 0:00:08]} Nd5+ {[%emt 0:00:06]} 74. Kf5 {[%emt 0:00:45]} Ke7 {[%emt 0:00:32]} 75. Nd4 {[%emt 0:00:28]} Ne3+ {[%emt 0:00:34]} 76. Ke4 {[%emt 0:01:24]} Nc4 {[%emt 0:02:48]} 77. e6 {[%emt 0:00:04]} Nd6+ {[%emt 0:03:06]} 78. Kd5 {[%emt 0:00:04]} Ne8 {[%emt 0:00:28]} 79. Nf5+ {[%emt 0:00:26]} Kf6 {[%emt 0:03:34]} 80. Ke4 {[%emt 0:01:14]} 1/2-1/2

[Event "12th Senioren-Cup Tegernsee 2024"]
[Site "Rottach-Egern"]
[Date "2024.04.11"]
[Round "6.2"]
[White "Heinbuch, Detlef Ulrich"]
[Black "Belke, Frank"]
[Result "1/2-1/2"]
[ECO "A25"]
[WhiteElo "2273"]
[BlackElo "2163"]
[Annotator "TA"]
[PlyCount "46"]
[EventDate "2024.04.02"]
[EventType "swiss"]
[EventCountry "GER"]
[SourceTitle "playchess.com"]
[Source "ChessBase"]
[SourceQuality "1"]
[TimeControl "7800+30"]

{[%evp 14,46,17,8,21,0,14,0,16,2,20,0,14,-13,5,-22,32,0,0,0,0,-23,0,0,0,0,0,0,0,0,0,0,0,0,12]} 1. c4 {[%emt 0:00:07]} e5 {[%emt 0:00:06]} 2. g3 {[%emt 0:00:30]} Nc6 {[%emt 0:00:05]} 3. Bg2 {[%emt 0:00:12]} g6 {[%emt 0:00:03]} 4. Nc3 {[%emt 0:00:36]} Bg7 {[%emt 0:00:06]} 5. e3 {[%emt 0:00:32]} d6 {[%emt 0:00:07]} 6. Nge2 {[%emt 0:00:48]} Nf6 {[%emt 0:00:08]} 7. O-O {[%emt 0:02:49]} O-O {[%emt 0:01:01]} 8. b3 {[%emt 0:09:20]} Bf5 {[%emt 0:03:19]} 9. d3 {[%emt 0:04:18]} Qd7 {[%emt 0:00:08]} 10. Bb2 {[%emt 0:17:08]} Bh3 {[%emt 0:00:23]} 11. e4 {[%emt 0:00:27]} (11. d4 {looks sharper.} Bxg2 12. Kxg2 Nb4 13. a3) 11... h5 {[%emt 0:01:06]} 12. Nd5 {[%emt 0:05:23]} Nxd5 {[%emt 0:01:42]} 13. cxd5 {[%emt 0:04:34][%cal Og2h3] [#] Strongly threatening Bxh3!} Ne7 {[%emt 0:00:01]} 14. f3 {[%emt 0:05:59]} Rac8 {[%emt 0:20:07]} (14... Bxg2 $11 15. Kxg2 c6) 15. Qd2 {[%emt 0:05:21]} c6 {[%emt 0:02:55]} 16. dxc6 {[%emt 0:00:20]} Rxc6 {[%emt 0:00:03]} 17. Rac1 {[%emt 0:04:50]} Rfc8 {[%emt 0:03:11]} 18. d4 {[%emt 0:07:30] The position is equal.} Rxc1 {[%emt 0:03:08]} 19. Rxc1 {[%emt 0:00:32]} Rxc1+ {[%emt 0:00:04]} 20. Qxc1 {[%emt 0:00:57]} Bxg2 {[%emt 0:04:28]} 21. Kxg2 {[%emt 0:00:17]} d5 {[%emt 0:03:40]} 22. exd5 {[%emt 0:06:26]} Qxd5 {[%emt 1:35:39]} 23. dxe5 {[%emt 0:00:30]} Qd7 {[%emt 0:00:00] A rather calm draw.   Weighted Error Value: White=0.13 (very precise) /Black=0.13 (very precise) .  Mistake:       	---       	Black=1      Inaccurate:     	White=3     	---        OK:         	White=4     	Black=3} 1/2-1/2

[Event "12th Senioren-Cup Tegernsee 2024"]
[Site "Rottach-Egern"]
[Date "2024.04.11"]
[Round "6.3"]
[White "Vatter, Hans-Joachim"]
[Black "Babar, Michael"]
[Result "1/2-1/2"]
[ECO "D01"]
[WhiteElo "2211"]
[BlackElo "2099"]
[Annotator "TA"]
[PlyCount "80"]
[EventDate "2024.04.02"]
[EventType "swiss"]
[EventCountry "GER"]
[SourceTitle "playchess.com"]
[Source "ChessBase"]
[SourceQuality "1"]
[TimeControl "7800+30"]

{[%evp 9,80,-7,11,-14,0,-15,-15,-20,-16,-32,-14,-14,0,-50,0,0,0,0,0,0,0,-9,-25,-35,0,0,0,0,0,0,0,0,19,25,11,10,34,0,19,4,33,33,45,-14,0,0,0,0,0,1,19,11,9,21,33,0,0,-73,-69,-57,-47,-94,-68,-29985,-29986,-29983,0,0,0,-29985,0,0,0]} 1. d4 {[%emt 0:00:31]} d5 {[%emt 0:01:01]} 2. Nc3 {[%emt 0:00:12]} Bf5 {[%emt 0:01:47]} 3. f3 {[%emt 0:01:45]} Nf6 {[%emt 0:01:05]} 4. Bg5 {[%emt 0:04:52]} c6 {[%emt 0:08:05]} 5. e3 {[%emt 0:04:34]} Nbd7 {[%emt 0:14:15]} 6. Bd3 {[%emt 0:01:42]} Bxd3 {[%emt 0:01:55]} 7. Qxd3 {[%emt 0:02:41]} Qa5 {[%emt 0:02:42]} 8. Nge2 {[%emt 0:02:20][%cal Ob2b4]} e6 {[%emt 0:00:25]} 9. O-O {[%emt 0:02:52]} Bd6 {[%emt 0:15:08]} 10. Bh4 {[%emt 0:11:21]} O-O {[%emt 0:26:39]} 11. a3 {[%emt 0:11:00]} (11. e4 $11) 11... c5 {[%emt 0:08:03]} (11... Qc7 $15) 12. b4 $11 {[%emt 0:08:14]} cxb4 {[%emt 0:00:06]} 13. axb4 {[%emt 0:00:05]} Qb6 {[%emt 0:00:27]} (13... Qxb4 14. Rfb1 Qc4 15. Qxc4 (15. Rxb7 Qc8 $14) 15... dxc4 16. Rxb7 $16) 14. Rfb1 {[%emt 0:05:48]} Rfc8 {[%emt 0:01:09]} (14... Bxb4 $2 15. Na2 $18) 15. Bg3 {[%emt 0:09:32]} Bxg3 {[%emt 0:00:53]} (15... Bxb4 $2 16. Na2 $18) 16. hxg3 {[%emt 0:00:09]} Qc6 {[%emt 0:07:27]} 17. b5 {[%emt 0:03:20]} Qc7 {[%emt 0:04:23]} 18. Ra2 {[%emt 0:01:14]} Ne8 {[%emt 0:05:01]} 19. e4 {[%emt 0:04:23]} Nb6 {[%emt 0:03:09]} 20. Rba1 {[%emt 0:01:50]} Nd6 {[%emt 0:03:45]} 21. Rxa7 {[%emt 0:02:50]} Rxa7 {[%emt 0:01:11]} 22. Rxa7 {[%emt 0:00:42]} Ndc4 {[%emt 0:03:11]} 23. Ra2 {[%emt 0:03:31]} Qd6 {[%emt 0:03:09]} 24. Kh2 {[%emt 0:06:34]} Qb4 {[%emt 0:05:16]} 25. exd5 {[%emt 0:07:52]} exd5 {[%emt 0:00:02]} 26. Qf5 {[%emt 0:01:23]} (26. Nf4 $14 Qd6 27. Ra7) 26... Rd8 {[%emt 0:00:07][%mdl 1024] Black has compensation.} 27. Ra7 {[%emt 0:02:15]} Qe7 {[%emt 0:01:59] Repels Qg5} 28. Nf4 {[%emt 0:03:42][%cal Rf4d5]} g6 $1 {[%emt 0:05:21]} 29. Qd3 {[%emt 0:04:52][%cal Of4d5]} Qc7 {[%emt 0:00:13]} 30. Qe2 {[%emt 0:03:52]} Kf8 {[%emt 0:00:51]} 31. Qe1 {[%emt 0:01:42]} h5 {[%emt 0:01:22]} 32. Qc1 {[%emt 0:04:01]} (32. Qe6 $5 Qd6 (32... fxe6 33. Nxe6+ Ke7 34. Nxc7 $18) (32... Qxf4 33. Qxb6 Nxb6 34. gxf4 $16) 33. Qxd6+ Nxd6 34. Nd3 $14 (34. Ncxd5 Nxd5 35. Nxd5 Nxb5 $11)) 32... Kg7 {[%emt 0:01:56]} 33. Nd3 {[%emt 0:01:29] [#]} (33. Nxh5+ $11 {keeps the balance.} gxh5 34. Qg5+ Kf8 35. Rxb7) 33... h4 $1 $17 {[%emt 0:00:10]} 34. Qf4 {[%emt 0:00:53]} hxg3+ {[%emt 0:00:05]} 35. Kxg3 {[%emt 0:00:03]} (35. Kg1 $1 $15 Qxf4 36. Nxf4) 35... Nd6 {[%emt 0:02:08]} 36. Nc5 $2 {[%emt 0:03:17][%mdl 8192]} (36. Qe5+ $15 f6 37. Nc5 (37. Nxd5 $2 {loses.} Nxd5 38. Nc5 fxe5 $19) 37... fxe5 (37... Nf5+ 38. Kf2 $14) 38. Ne6+ Kf7 39. Nxc7 exd4 (39... Rc8 40. N3xd5 exd4 41. Ra2 $11) 40. Na4) 36... Nf5+ {[%emt 0:03:54]} 37. Kg4 {[%emt 0:00:02]} Nh6+ {[%emt 0:00:14]} 38. Kg3 {[%emt 0:00:54] Dancing on a razor blade.} Nf5+ {[%emt 0:00:06]} 39. Kg4 {[%emt 0:00:47] [#] Active counter play!} Nh6+ $2 {[%emt 0:01:18]} (39... Ne3+ $1 {mates} 40. Kg3 Nf1+ (40... Nf5+ $2 41. Kg4 $19) 41. Kf2 Qxf4 42. Ne6+ fxe6 43. Rxb7+ Kf6 44. Rxb6 Qxd4+ 45. Kxf1 Qxb6 46. Nd1 Rc8 (46... Qxb5+ 47. Ke1 Qb4+ 48. Ke2 Qc4+ 49. Kd2 Qf4+ 50. Ke2 d4 51. g4 Rc8 52. g5+ Kxg5 53. c4 Rxc4 54. Kd3 Rc7 55. Ke2 Rc2+ 56. Kd3 Qd2+ 57. Ke4 Qe2+ 58. Kxd4 Rc4#) 47. c3 Ra8 (47... Qxb5+ {gets mated.} 48. Ke1 Qd3 49. g4 Ra8 50. g5+ Kxg5 51. Kf2 Ra2+ 52. Kg3 Qxd1 53. f4+ Kf5 54. Kh4 Qg4#) 48. g3 Ra2 (48... Qxb5+ 49. Kg2 Ra2+ 50. Nf2 Qc5 51. Kh3 Qxf2 52. Kg4 Qh2 53. c4 Qh5+ 54. Kf4 Qg5#) 49. g4 Qxb5+ 50. c4 Qxc4+ 51. Kg1 Qd4+ 52. Nf2 Qxf2+ 53. Kh1 Qh2#) 40. Kg3 $11 {[%emt 0:01:02]} Nf5+ {[%emt 0:00:30] Weighted Error Value: White=0.35/Black=0.41.  Loses game:     	White=1     	---        Missed win:     	---       	Black=1      Mistake:       	White=4     	Black=1      Inaccurate:     	White=2     	Black=2      OK:         	White=9     	Black=13     Best:        	White=2     	Black=2      Strong:       	---       	Black=2} 1/2-1/2